Cogmind - Beta 11.1 @@@ ROGUE MODE // 2022.05.22 @ 00:53:42 Player: Ruxi Result: Self-destructed Performance ------------- Evolutions (1) 500 Regions Visited (6) 1200 Robots Destroyed (12) 60 Value Destroyed (126) 126 Prototype IDs (0) 0 Alien Tech Used (0) 0 Bonus (0) 0 TOTAL SCORE: 1886 Bonus ------- None Cogmind --------- Core Integrity 336/400 Matter 198/300 Energy 84/100 System Corruption 0% Temperature Cool (3) Movement Flying (34) Location -8/Mines Parts ------- > --- POWER (1) -------- (None) > --- PROPULSION (4) --- Flight Unit Flight Unit Flight Unit > --- UTILITY (2) ------ Sensor Array > --- WEAPON (2) ------- Rocket Launcher > --- INVENTORY (5) ---- Light Treads Light Armor Plating Beam Rifle Improved Medium Laser Light EM Pulse Cannon Peak State ------------ > --- POWER ------------ Ion Engine > --- PROPULSION ------- Flight Unit Flight Unit Flight Unit Flight Unit > --- UTILITY ---------- Small Storage Unit Sensor Array > --- WEAPON ----------- Grenade Launcher > --- INVENTORY -------- Light Treads Light Treads Light Armor Plating Beam Rifle Improved Medium Laser Assault Rifle Light Cannon [Rating: 9] Favorites ----------- Power Ion Engine Engine Ion Engine Propulsion Flight Unit Leg Aluminum Leg Flight Unit Flight Unit Utility Small Storage Unit Device Sensor Array Storage Small Storage Unit Weapon Medium Laser Energy Gun Medium Laser Ballistic Gun Assault Rifle Launcher Grenade Launcher Build | -11 -10 -10 -9 -9 -9 -8 ------- Run | Scr Mat Min Mat Min Exi Min Slots Evolved 2 | . . . 2 . . . Power . | . . . . . . . Propulsion 2 | . . . 2 . . . Utility . | . . . . . . . Weapon . | . . . . . . . Parts Attached 18 | 6 3 3 4 . . 2 Power 3 | 1 1 . 1 . . . Engine 3 | 1 1 . 1 . . . Core . | . . . . . . . Reactor . | . . . . . . . Propulsion 7 | 2 . 2 2 . . 1 Treads . | . . . . . . . Leg 2 | 2 . . . . . . Wheel . | . . . . . . . Hover . | . . . . . . . Flight 5 | . . 2 2 . . 1 Utility 2 | 1 1 . . . . . Device 1 | . 1 . . . . . Storage 1 | 1 . . . . . . Processor . | . . . . . . . Hackware . | . . . . . . . Protection . | . . . . . . . Artifact . | . . . . . . . Weapon 6 | 2 1 1 1 . . 1 Energy Gun 3 | 2 1 . . . . . Energy Cannon . | . . . . . . . Ballistic Gun 1 | . . 1 . . . . Ballistic Cannon . | . . . . . . . Launcher 2 | . . . 1 . . 1 Special Weapon . | . . . . . . . Impact Weapon . | . . . . . . . Slashing Weapon . | . . . . . . . Piercing Weapon . | . . . . . . . Special Melee Weapon . | . . . . . . . Unidentified Prototypes . | . . . . . . . Parts Lost 3 | . . . . . . 3 Power . | . . . . . . . Propulsion 2 | . . . . . . 2 Utility . | . . . . . . . Weapon 1 | . . . . . . 1 Highest Loss Streak 3 | . . . . . . 3 To Critical Strikes . | . . . . . . . Average Slot Usage (%) 87 | . 98 85 88 88 88 53 Engine 9 | . 14 7 11 11 11 1 Leg 11 | . 28 14 . . . . Flight 21 | . . 14 44 44 44 29 Device 12 | . 12 14 11 11 11 11 Storage 12 | . 14 14 11 11 11 1 Energy Gun 11 | . 28 13 . . . . Ballistic Gun 3 | . . 7 5 . . . Launcher 3 | . . . 5 11 11 9 Naked Turns . | . . . . . . . Heaviest Build 15 | 11 15 15 14 14 14 14 Greatest Support 20 | 20 20 20 16 16 16 16 Greatest Overweight (x) 2 | 2 . . . . . . Average Overweight (x) . | . . . . . . . Largest Inventory Capacity 8 | 8 8 8 8 8 8 8 Average Capacity 7 | 7 8 8 8 8 8 5 Most Carried 8 | 5 8 8 7 8 8 8 Average Carried 7 | 2 6 7 6 7 8 5 Final Capacity 8 | 8 8 8 8 8 8 5 Final Carried 8 | 4 8 8 7 8 8 5 Class Distribution -------------------- 69% | Mutant 30% | Scavenger-Sprinter Dominant Class ---------------- Mutant | -10/Materials Mutant | -10/Mines Scavenger-Sprinter | -9/Materials Scavenger-Sprinter | -9/Mines Scavenger-Sprinter | -9/Exiles Mutant | -8/Mines Resources | -11 -10 -10 -9 -9 -9 -8 ----------- Run | Scr Mat Min Mat Min Exi Min Matter Collected 358 | 186 50 84 . 19 . 19 Remotely . | . . . . . . . Salvage Created 121 | . 76 21 1 . . 23 Parts 18 | . 4 4 4 . . 6 Haulers Intercepted . | . . . . . . . Recyclers Shooed . | . . . . . . . Parts Field Recycled . | . . . . . . . Retrieved Matter . | . . . . . . . Parts Self-Destructed . | . . . . . . . Prevented . | . . . . . . . Kills | -11 -10 -10 -9 -9 -9 -8 ------- Run | Scr Mat Min Mat Min Exi Min Combat Hostiles Destroyed 9 | . 2 . 4 . . 3 Guns 2 | . 2 . . . . . AOE 7 | . . . 4 . . 3 Classes Destroyed 4 | . 3 1 . . . . Tunneler 1 | . . 1 . . . . Mechanic 1 | . 1 . . . . . Watcher 1 | . 1 . . . . . Swarmer 9 | . 2 . 4 . . 3 Best Kill Streak 4 | . 2 1 4 . . 3 Combat Bots Only 4 | . 2 . 4 . . 3 Max Kills in Single Turn 2 | . 2 1 2 . . 2 Gunslinging 1 | . 1 . . . . . Exploded 2 | . . . 2 . . 2 Melee . | . . . . . . . Uniques/NPCs Destroyed . | . . . . . . . Combat | -11 -10 -10 -9 -9 -9 -8 -------- Run | Scr Mat Min Mat Min Exi Min Damage Taken 510 | . 59 163 123 16 . 149 Core 155 | . 28 63 37 . . 27 Absorbed by Shields . | . . . . . . . Core Remaining (%) 81 | 100 . 63 . . . . Volleys Fired 19 | . 9 1 4 . . 5 Largest 2 | . 2 2 1 . . 1 Hottest 100 | . 100 100 30 . . 33 Shots Fired 29 | . 18 2 4 . . 5 Gun 20 | . 18 2 . . . . Cannon . | . . . . . . . Launcher 9 | . . . 4 . . 5 Special . | . . . . . . . Kinetic . | . . . . . . . Thermal 20 | . 18 2 . . . . Explosive 9 | . . . 4 . . 5 Electromagnetic . | . . . . . . . Robot Hit Streak 2 | . 2 1 2 . . . Robot Miss Streak 3 | . 2 2 . . . 3 Penetration Max . | . . . . . . . Secondary Targets 1 | . 1 . . . . . Max Gunslinging Chain 1 | . 1 . . . . . Shots Hit Robots 10 | . 8 1 1 . . . Core Hits 14 | . 6 1 4 . . 3 Critical Kills . | . . . . . . . Critical Parts Destroyed . | . . . . . . . Critical Strikes 2 | . 2 . . . . . Burn 2 | . 2 . . . . . Melee Attacks . | . . . . . . . Impact . | . . . . . . . Slashing . | . . . . . . . Piercing . | . . . . . . . Sneak Attacks . | . . . . . . . Combat Hostiles . | . . . . . . . Follow-up Attacks . | . . . . . . . Damage Inflicted 628 | . 112 13 351 . . 152 Guns 125 | . 112 13 . . . . Cannons . | . . . . . . . Explosions 503 | . . . 351 . . 152 Melee . | . . . . . . . Ramming . | . . . . . . . Kinetic . | . . . . . . . Thermal 125 | . 112 13 . . . . Explosive 503 | . . . 351 . . 152 Electromagnetic . | . . . . . . . Impact . | . . . . . . . Slashing . | . . . . . . . Piercing . | . . . . . . . Highest Corruption . | . . . . . . . Average Corruption . | . . . . . . . Corruption Purged . | . . . . . . . Corruption Blocked . | . . . . . . . Overload Shots . | . . . . . . . Overflow Damage 14 | . . . 14 . . . Projectiles . | . . . . . . . Explosions 14 | . . . 14 . . . Melee . | . . . . . . . Knockbacks . | . . . . . . . Impact . | . . . . . . . Kinetic . | . . . . . . . Secondary . | . . . . . . . Self-Inflicted Damage . | . . . . . . . Shots . | . . . . . . . Rammed . | . . . . . . . Targets Rammed . | . . . . . . . Kicked . | . . . . . . . Crushed . | . . . . . . . Highest Temperature 117 | . 117 39 24 . . 5 Average Temperature 36 | . 47 17 9 . . 3 Received Heat Transfer 161 | . . 20 72 6 . 63 Siege Activations . | . . . . . . . Robots Corrupted . | . . . . . . . Combat Hostiles . | . . . . . . . Parts Fried . | . . . . . . . Impact Corruptions . | . . . . . . . Robots Melted . | . . . . . . . Combat Hostiles . | . . . . . . . Parts Melted 1 | . 1 . . . . . Heat Transferred 518 | . 481 37 . . . . Parts Sabotaged . | . . . . . . . Parts Stolen . | . . . . . . . Parts Stripped . | . . . . . . . Power Chain Reactions . | . . . . . . . Missiles Intercepted . | . . . . . . . Alert | -11 -10 -10 -9 -9 -9 -8 ------- Run | Scr Mat Min Mat Min Exi Min Peak Influence 230 | . 95 101 227 103 . 230 Initial 88 | . . 36 . 88 . . Average 48 | . 45 46 81 47 . 82 Maximum Alert Level 1 | . . . 1 . . 1 Low Security (%) 99 | 100 100 100 96 100 . 90 Level 1 . | . . . 3 . . 10 Level 2 . | . . . . . . . Level 3 . | . . . . . . . Level 4 . | . . . . . . . Level 5 . | . . . . . . . High Security . | . . . . . . . Max Security . | . . . . . . . Squads Dispatched 2 | . 1 . 1 . . . Investigation 1 | . . . 1 . . . Extermination . | . . . . . . . Reinforcement 1 | . 1 . . . . . Assault . | . . . . . . . Garrison . | . . . . . . . Intercept . | . . . . . . . Searches Triggered . | . . . . . . . Construction Impeded . | . . . . . . . Haulers Reinforced . | . . . . . . . Active Scanning Responses . | . . . . . . . Cargo Convoy Interrupts . | . . . . . . . Stealth | -11 -10 -10 -9 -9 -9 -8 --------- Run | Scr Mat Min Mat Min Exi Min Distress Signals 3 | . . . 3 . . . Communications Jammed . | . . . . . . . Distress Signals . | . . . . . . . Times Spotted 56 | . 6 16 16 5 . 13 Peak Tracking Total 14 | . 3 8 14 4 . 12 Tactical Retreats 8 | . . 5 . 1 . 2 Traps | -11 -10 -10 -9 -9 -9 -8 ------- Run | Scr Mat Min Mat Min Exi Min Traps Triggered . | . . . . . . . Indirectly . | . . . . . . . Trap Hack Attempts . | . . . . . . . Triggered . | . . . . . . . Disarmed . | . . . . . . . Reprogrammed . | . . . . . . . Reused . | . . . . . . . Traps Extracted . | . . . . . . . Installed . | . . . . . . . Triggered . | . . . . . . . Machines | -11 -10 -10 -9 -9 -9 -8 ---------- Run | Scr Mat Min Mat Min Exi Min Machines Disabled . | . . . . . . . Max in Single Turn . | . . . . . . . Machines Sabotaged . | . . . . . . . Garrisons Compromised . | . . . . . . . Overloaded Fab Kills . | . . . . . . . Hacking | -11 -10 -10 -9 -9 -9 -8 --------- Run | Scr Mat Min Mat Min Exi Min Machines Accessed 9 | . 1 . 4 1 3 . Terminals 6 | . 1 . 4 1 . . Fabricators . | . . . . . . . Repair Stations . | . . . . . . . Recycling Units . | . . . . . . . Scanalyzers . | . . . . . . . Garrison Access . | . . . . . . . Total Hacks 14 | . 2 . 7 2 3 . Successful 8 | . 1 . 3 1 3 . Failed 6 | . 1 . 4 1 . . Catastrophic 4 | . 1 . 2 1 . . Database Lockouts . | . . . . . . . Manual 10 | . 1 . 7 2 . . Terminals 11 | . 2 . 7 2 . . Fabricators . | . . . . . . . Repair Stations . | . . . . . . . Recycling Units . | . . . . . . . Scanalyzers . | . . . . . . . Garrison Access . | . . . . . . . Terminal Hacks 5 | . 1 . . 1 3 . Record 3 | . . . . . 3 . Alert Level 1 | . 1 . . . . . Unreport Threat 1 | . . . . 1 . . Fabricator Hacks . | . . . . . . . Repair Station Hacks . | . . . . . . . Recycling Unit Hacks . | . . . . . . . Scanalyzer . | . . . . . . . Garrison Access Hacks . | . . . . . . . Unauthorized Hacks 3 | . . . 3 . . . Terminals 3 | . . . 3 . . . Botnet 2 | . . . 2 . . . Operators 1 | . . . 1 . . . Fabricators . | . . . . . . . Repair Stations . | . . . . . . . Recycling Units . | . . . . . . . Scanalyzers . | . . . . . . . Garrison Access . | . . . . . . . Data Cores Recovered . | . . . . . . . Used . | . . . . . . . Hacking Detections 6 | . 1 . 4 1 . . Full Trace Events . | . . . . . . . Feedback Events . | . . . . . . . Feedback Blocked . | . . . . . . . Robot Schematics Acquired . | . . . . . . . Robots Built . | . . . . . . . Authchips . | . . . . . . . Time . | . . . . . . . Total Robot Build Rating . | . . . . . . . Part Schematics Acquired . | . . . . . . . Parts Built . | . . . . . . . Authchips . | . . . . . . . Time . | . . . . . . . Total Part Build Rating . | . . . . . . . Parts Repaired . | . . . . . . . Time . | . . . . . . . Parts Recycled . | . . . . . . . Recycled Matter . | . . . . . . . Retrieved Matter . | . . . . . . . Retrieved Components . | . . . . . . . Parts Scanalyzed . | . . . . . . . Part Schematics Acquired . | . . . . . . . Parts Damaged . | . . . . . . . Bothacking | -11 -10 -10 -9 -9 -9 -8 ------------ Run | Scr Mat Min Mat Min Exi Min Used RIF Installer . | . . . . . . . Robots Hacked . | . . . . . . . Non-combat . | . . . . . . . Combat . | . . . . . . . Robot Hacks Applied . | . . . . . . . Relay Couplers Released . | . . . . . . . Fabnet Peak Effective % . | . . . . . . . Robots Rewired . | . . . . . . . Allies Hacked . | . . . . . . . Hacks Repelled . | . . . . . . . Allies | -11 -10 -10 -9 -9 -9 -8 -------- Run | Scr Mat Min Mat Min Exi Min Total Allies 1 | . . 1 . . . . Largest Group 1 | . . 1 1 . . . Highest-Rated Group 31 | . . 31 31 . . . Highest-Rated Ally 31 | . . 31 31 . . . Total Orders . | . . . . . . . Ally Attacks 6 | . . 6 . . . . Total Damage 85 | . . 85 . . . . Kills 4 | . . 4 . . . . Allies Corrupted . | . . . . . . . Allies Melted . | . . . . . . . Intel | -11 -10 -10 -9 -9 -9 -8 ------- Run | Scr Mat Min Mat Min Exi Min Robot Analysis Total . | . . . . . . . Derelict Logs Recovered 4 | . . 2 . 2 . . Drone Launches . | . . . . . . . Drone Recoveries . | . . . . . . . Exploration | -11 -10 -10 -9 -9 -9 -8 ------------- Run | Scr Mat Min Mat Min Exi Min Turns Passed 1239 | 58 245 502 77 165 132 60 Spaces Moved 2254 | 38 173 765 201 518 425 134 Core 15 | 15 . . . . . . Treads . | . . . . . . . Legs 314 | 23 173 118 . . . . Wheels . | . . . . . . . Hover . | . . . . . . . Flight 1925 | . . 647 201 518 425 134 Fastest Speed 31 | 50 120 37 31 31 31 31 Average Speed 45 | 118 120 49 31 31 31 34 Slowest Speed 150 | 150 120 120 31 31 31 37 Overloaded Moves . | . . . . . . . Propulsion Burnouts . | . . . . . . . Robots Hopped 18 | . . 5 8 3 . 2 Cave-ins Triggered . | . . . . . . . Exploration Rate (%) 54 | 4 29 100 27 92 83 46 Regions Visited 6 Branch Regions 4 Pre-discovered Areas 1 | . . . . 1 . . Known Exits Taken 1 | . . 1 . . . . Unknown Exits Taken 5 | 1 1 . 1 1 1 . Scrap Searched 3 | . . 1 . 1 . 1 Spaces Dug . | . . . . . . . Terrain Destroyed 55 | . . . 15 . . 40 Melee . | . . . . . . . Projectile . | . . . . . . . AOE 55 | . . . 15 . . 40 Terrain Rammed . | . . . . . . . Walls Destroyed . | . . . . . . . Machines Disabled . | . . . . . . . Actions | -11 -10 -10 -9 -9 -9 -8 --------- Run | Scr Mat Min Mat Min Exi Min Total 2409 | 49 192 882 202 519 424 141 Wait 107 | . 1 106 . . . . Move 2213 | 37 172 754 185 511 424 130 Hop 17 | . . 5 7 3 . 2 Pick Up 21 | 6 5 5 2 3 . . Fast Attach 7 | 4 2 . . . . 1 Attach 7 | 2 . 1 3 . . 1 Detach 1 | . . 1 . . . . Swap 4 | . 1 2 1 . . . Drop 13 | . 2 7 . 2 . 2 Fire 19 | . 9 1 4 . . 5 Melee . | . . . . . . . Ram . | . . . . . . . Kick . | . . . . . . . Crush . | . . . . . . . Escape Stasis . | . . . . . . . Rewire . | . . . . . . . Trap . | . . . . . . . Miscellaneous . | . . . . . . . Route ------- -11/Scrapyard -10/Materials -10/Mines (discovered 2 exits: *Mat x2) -9/Materials -9/Mines (discovered 2 exits: [*Mat] / *Exi) -9/Exiles -8/Mines History --------- Turn | Location | Event 20 | -11/Scrapyard | Discovered new exit (range 15) 59 | -11/Scrapyard | Entered Materials 237 | -10/Materials | Discovered new exit (range 13) 304 | -10/Materials | Entered Mines 318 | -10/Mines | Build established: Mutant 328 | -10/Mines | Assembled infested the area 333 | -10/Mines | Assisted by a Guerilla fighting off Assembled 340 | -10/Mines | Identified exit to Materials 367 | -10/Mines | Met a Derelict bent on vengeance 571 | -10/Mines | Learned Materials stockpile data 589 | -10/Mines | Discovered exit to Materials (range 7) 595 | -10/Mines | Received a Mining Laser from a helpful Derelict 806 | -10/Mines | Entered Materials 806 | -9/Materials | Accompanied by 1 ally 806 | -9/Materials | Evolved 2 slots: Propulsion x2 881 | -9/Materials | Discovered new exit (range 9) 883 | -9/Materials | Entered Mines 885 | -9/Mines | Learned location of Storage (-7) 894 | -9/Mines | Learned location of 1 exit from Materials 985 | -9/Mines | Received a Rocket Launcher from a helpful Derelict 1019 | -9/Mines | Discovered new exit (range 4) 1047 | -9/Mines | Deemed a non-threat by the Exiles lab entrance 1047 | -9/Mines | Discovered new exit (range 5) 1048 | -9/Mines | Entered Exiles 1048 | -9/Exiles | Found Exiles lab abandoned 1053 | -9/Exiles | Discovered new exit (range 15) 1101 | -9/Exiles | Build established: Scavenger-Sprinter 1180 | -9/Exiles | Entered Mines 1222 | -8/Mines | Lost 3 parts (2n1w) 1240 | -8/Mines | Self-destructed Last Messages --------------- coming. LOCATION=UNKNOWN GOAL=ESCAPE 01187_ Flight Unit destroyed. 01187_ Grenade Launcher destroyed. 01191_ Flight Unit destroyed. 01193_ Dropped Sml. Storage Unit. 01193_ Dropped Ion Engine. 01195_ Seismic Survey Station disabled. 01207_ S-10 Pest destroyed. 01219_ The unstable cave ceiling collapses. 01219_ Acquired 9 matter. 01219_ Acquired Flight Unit. 01221_ Acquired 10 matter. 01225_ Searching scrap... 01225_ Found Ion Engine. 01225_ Found Nuclear Core. 01225_ Found Weight Redist. System. 01225_ Found Hpw. Tractor Beam. 01225_ Found 33 Matter. Map ----- +----------------------------------------------------+ | | | | | ???????????????????????????????????????????? | | ???????????????????????????????????????????? | | ???????????????????????????????????????????? | | ???????????????????????????????????????????? | | ???????????????????????????????????????????? | | ???????????????????????????????????????????? | | ???????????????????????????????????????????? | | ???????????????????????????????????????????? | | ???????????????????????????????????????????? | | ???????????????????????????????????????????? | | ???????????????????????????????????????????? | | ???????????????????????????????????????????? | | ???????????????????????????????????????????? | | ???????????????????????????????????????????? | | ???????????????????????###?????????????????? | | ???????????????????????k #????????????????? | | ???????????????????????# #????????????????? | | ???????????????????????# #????????????????? | | ???????????????????????# #????????????????? | | ???????????????????????# #????????????????? | | ???????????????????????# #????????????????? | | ???????????????????????# #??#?????????????? | | ???????????????????????# ## #?????????????? | | ???????????????????????# @ #?????????????? | | ???????????????????????# ####?????????????? | | ???????????????????????# #????????????????? | | ???????????????????????# #????????????????? | | ???????????????????????# #????????????????? | | ???????????????????????# ###??????????????? | | ???????????????????????# ##?????????????? | | ??????????????????????## #?????????????? | | ?????????????????????## #?????????????? | | ????????????????????## ##?????????????? | | ????????????????????# ##??????????????? | | ????????????????????# ##??????????????? | | ????????????????????# ###????????????? | | ???????????????????## ?##???????????? | | ??????????????????## #???????????? | | ??????#####??###### # # ??????? | | ?????## #### ## ## ## ####### ?????? | | ###### ## ## #?###????????????? | | ## """ ### ????????????????? | | """ ##?# ???????????????? | | ## """ ## ##??### #??????????????? | | #### ######?????? #??????????????? | | #### ##??????????? ??????????????? | | ### ##???????????? #??????????????? | | #?## #?????????????###??????????????? | +----------------------------------------------------+ Best States ------------- Heat Dissipation 28 Energy Generation 10 Energy Capacity 250 Matter Stores 300 Matter Capacity 300 Sight Range 16 Robot Scan Range 14 Terrain Scan Density 10 Evasion (%) 63 Item Schematics ----------------- None Robot Schematics ------------------ None Fabricated ------------ Nothing Alien Tech Used ----------------- None Achievements -------------- None Challenges ------------ None Game ------ Seed DecoderProtonArray Manual? 0 Play Time 00:26:20 Cumulative 66.2 hours Start 2022.05.22 @ 00:28:17 End 2022.05.22 @ 00:53:42 Sessions 1 Manual Loads 0 Difficulty Rogue Special Mode None Game No. 47 Rogue 45 Adventurer 0 Explorer 2 Win Type - Total 0 Types 0/0/0/0/0/0/0/0/0 Lore% 24 Gallery% 30 Achievement% 25 Wizard Run 0 Options --------- ASCII 0 Keyboard 0 Movement Numpad Keybinds 0 Fullscreen 1 Font 18/SmallcapsGlow Map View 76x50 Tactical HUD 1 Map Filters NONE Filters NONE Steam 1 RUN: fa976825-e5fe-4818-969f-ddba36c783cd